Cogmind - Beta 15 @@@ ROGUE MODE // 2025.10.13 @ 23:13:36 Player: NQH Result: Self-destructed Performance ------------- Evolutions (2) 1000 Regions Visited (4) 800 Robots Destroyed (15) 75 Value Destroyed (362) 362 Prototype IDs (0) 0 Alien Tech Used (0) 0 Bonus (0) 0 TOTAL SCORE: 2237 Bonus ------- None Cogmind --------- Core Integrity 303/550 Matter 290/300 Energy 100/100 System Corruption 0% Temperature Cool (0) Movement Core (50) Location -8/Storage Parts ------- > --- POWER (1) -------- (None) > --- PROPULSION (2) --- (None) > --- UTILITY (6) ------ (None) > --- WEAPON (2) ------- (None) > --- INVENTORY (5) ---- Ion Engine Light Ion Engine Improved Utility Shielding Improved Utility Shielding Datajack Peak State ------------ > --- POWER ------------ Nuclear Core > --- PROPULSION ------- Improved Treads > --- UTILITY ---------- Visual Processing Unit Melee Analysis Suite > --- WEAPON ----------- Shock Rifle Ion Cannon > --- INVENTORY -------- Ion Engine Light Ion Engine Improved Utility Shielding Improved Utility Shielding Datajack [Rating: 16] Favorites ----------- Power Ion Engine Engine Ion Engine Power Core Nuclear Core Propulsion Flight Unit Treads Improved Treads Flight Unit Flight Unit Utility Visual Processing Unit Device Weight Redist. System Processor Visual Processing Unit Weapon Light Assault Rifle Energy Gun Small Laser Energy Cannon Ion Cannon Ballistic Gun Light Assault Rifle Build | -11 -10 -9 -8 -8 ------- Run | Yrd Mat Mat Mat Sto Slots Evolved 4 | . . 2 2 . Power . | . . . . . Propulsion . | . . . . . Utility 4 | . . 2 2 . Weapon . | . . . . . Parts Attached 23 | 1 14 . 6 2 Power 4 | 1 2 . 1 . Engine 3 | 1 2 . . . Core 1 | . . . 1 . Reactor . | . . . . . Propulsion 10 | . 8 . 1 1 Treads 1 | . . . 1 . Leg . | . . . . . Wheel . | . . . . . Hover . | . . . . . Flight 9 | . 8 . . 1 Utility 3 | . 1 . 2 . Device 1 | . . . 1 . Storage . | . . . . . Processor 2 | . 1 . 1 . Hackware . | . . . . . Protection . | . . . . . Artifact . | . . . . . Weapon 6 | . 3 . 2 1 Energy Gun 3 | . 1 . 1 1 Energy Cannon 1 | . . . 1 . Ballistic Gun 2 | . 2 . . . Ballistic Cannon . | . . . . . Launcher . | . . . . . Special Weapon . | . . . . . Impact Weapon . | . . . . . Slashing Weapon . | . . . . . Piercing Weapon . | . . . . . Special Melee Weapon . | . . . . . Unidentified Prototypes . | . . . . . Parts Lost 19 | . 9 3 5 2 Power 3 | . 2 . 1 . Propulsion 10 | . 6 2 1 1 Utility 2 | . . . 2 . Weapon 4 | . 1 1 1 1 Highest Loss Streak 6 | . 3 6 4 2 To Critical Strikes . | . . . . . Average Backups 4 | 2 4 4 4 5 Power 2 | 1 2 2 1 2 Propulsion . | . . . . . Utility 1 | . 1 1 2 2 Weapon . | . . . . . Tool/Special . | . . . . . Unused Backups 6 | 1 . 1 . 4 Power 1 | . . . . 1 Propulsion . | . . . . . Utility 3 | . . 1 . 2 Weapon 1 | 1 . . . . Tool/Special 1 | . . . . 1 Average Slot Usage (%) 41 | . 51 29 32 10 Engine 4 | . 6 . 3 . Flight 13 | . 20 11 . 5 Processor 7 | . 4 11 13 . Energy Gun 5 | . 5 7 5 5 Ballistic Gun 7 | . 13 . . . Peak Build Rating 16 | 1 6 5 16 6 Average Rating 4 | . 4 3 9 4 On Entrance 1 | . . 5 2 . Naked Turns 23 | . 6 . 11 6 Heaviest Build 16 | 5 8 1 16 3 Greatest Support 23 | 3 8 8 23 5 Greatest Overweight (x) 4 | 1 . . 4 . Average Overweight (x) . | . . . . . Largest Inventory Capacity 5 | 5 5 5 5 5 Average Capacity 5 | 5 5 5 5 5 Most Carried 5 | 5 5 5 5 5 Average Carried 4 | 2 4 4 4 5 Final Capacity 5 | 5 5 5 5 5 Final Carried 5 | 5 4 5 5 5 Class Distribution -------------------- 81% | Mutant 18% | Scavenger-Mutant Dominant Class ---------------- Mutant | -10/Materials Mutant | -9/Materials Mutant | -8/Materials Mutant | -8/Storage Resources | -11 -10 -9 -8 -8 ----------- Run | Yrd Mat Mat Mat Sto Matter Collected 475 | 175 262 . 38 . Remotely . | . . . . . Salvage Created 441 | . 355 . 86 . Parts 31 | . 29 . 2 . Haulers Intercepted . | . . . . . Recyclers Shooed . | . . . . . Parts Field Recycled . | . . . . . Retrieved Matter . | . . . . . Parts Self-Destructed . | . . . . . Prevented . | . . . . . Kills | -11 -10 -9 -8 -8 ------- Run | Yrd Mat Mat Mat Sto Combat Hostiles Destroyed 12 | . 10 . 2 . Melee 1 | . . . 1 . Guns 11 | . 10 . 1 . Classes Destroyed 5 | . 4 . 1 . Recycler 1 | . 1 . . . Operator 1 | . . . 1 . Watcher 1 | . 1 . . . Swarmer 5 | . 5 . . . Grunt 7 | . 5 . 2 . Best Kill Streak 6 | . 6 . 2 . Combat Bots Only 5 | . 5 . 1 . Max Kills in Single Turn 1 | . 1 . 1 . Gunslinging . | . . . . . Exploded . | . . . . . Melee 1 | . . . 1 . Uniques/NPCs Destroyed . | . . . . . Combat | -11 -10 -9 -8 -8 -------- Run | Yrd Mat Mat Mat Sto Hostile Shots Fired 172 | . 78 29 57 8 Missed 58 | . 25 13 16 4 Hits 114 | . 53 16 41 4 Projectile 114 | . 53 16 41 4 AOE 2 | . 1 . . 1 Damage Taken 1441 | . 540 176 633 92 Core 481 | . 131 103 198 49 Absorbed by Shields . | . . . . . Core Remaining (%) 73 | 100 47 74 . . Volleys Fired 60 | . 45 . 14 1 Largest 2 | . 2 . 2 1 Hottest 110 | . 40 . 110 63 Shots Fired 89 | . 69 . 19 1 Gun 80 | . 69 . 10 1 Cannon 9 | . . . 9 . Launcher . | . . . . . Special . | . . . . . Kinetic 54 | . 54 . . . Thermal 25 | . 15 . 9 1 Explosive . | . . . . . Electromagnetic 10 | . . . 10 . Robot Hit Streak 8 | . 8 . 8 . Robot Miss Streak 4 | . 4 . 3 1 Penetration Max . | . . . . . Secondary Targets 3 | . 3 . . . Max Gunslinging Chain 1 | . 1 . . . Shots Hit Robots 55 | . 42 . 13 . Core Hits 20 | . 16 . 4 . Critical Kills . | . . . . . Critical Parts Destroyed . | . . . . . Critical Strikes . | . . . . . Melee Attacks . | . . . . . Impact . | . . . . . Slashing . | . . . . . Piercing . | . . . . . Sneak Attacks . | . . . . . Combat Hostiles . | . . . . . Follow-up Attacks . | . . . . . Damage Inflicted 788 | . 470 . 318 . Guns 600 | . 470 . 130 . Cannons 140 | . . . 140 . Explosions 44 | . . . 44 . Melee . | . . . . . Ramming 4 | . . . 4 . Kinetic 361 | . 361 . . . Thermal 293 | . 109 . 184 . Explosive . | . . . . . Electromagnetic 130 | . . . 130 . Impact . | . . . . . Slashing . | . . . . . Piercing . | . . . . . Highest Corruption . | . . . . . Average Corruption . | . . . . . Corruption Purged . | . . . . . Corruption Blocked . | . . . . . Overload Shots . | . . . . . Overflow Damage . | . . . . . Projectiles . | . . . . . Explosions . | . . . . . Melee . | . . . . . Knockbacks . | . . . . . Impact . | . . . . . Kinetic . | . . . . . Secondary . | . . . . . Self-Inflicted Damage 15 | . . . 15 . Shots 1 | . . . 1 . Rammed 3 | . . . 3 . Targets Rammed 4 | . . . 4 . Kicked . | . . . . . Crushed 1 | . . . 1 . Highest Temperature 361 | . 34 . 361 13 Average Temperature 74 | . 9 . 155 12 Received Heat Transfer 582 | . 168 63 315 36 Effects 1 | . . . 1 . Shutdowns 1 | . . . 1 . Siege Activations . | . . . . . Martial Activations . | . . . . . Shielding Activations . | . . . . . Robots Disrupted . | . . . . . Combat Hostiles . | . . . . . Robots Corrupted . | . . . . . Combat Hostiles . | . . . . . Parts Fried 3 | . . . 3 . Impact Corruptions . | . . . . . Robots Melted . | . . . . . Combat Hostiles . | . . . . . Parts Melted 2 | . 2 . . . Heat Transferred 472 | . 250 . 222 . Parts Sabotaged . | . . . . . Parts Stolen . | . . . . . Parts Stripped . | . . . . . Power Chain Reactions 1 | . . . 1 . Alert | -11 -10 -9 -8 -8 ------- Run | Yrd Mat Mat Mat Sto Maximum Alert Level . | . . . . . Low Security (%) 100 | 100 100 100 100 100 Level 1 . | . . . . . Level 2 . | . . . . . Level 3 . | . . . . . Level 4 . | . . . . . Level 5 . | . . . . . High Security . | . . . . . Max Security . | . . . . . Peak Influence 186 | . 186 80 71 15 Initial 57 | . . 57 33 5 Average 69 | . 101 38 45 4 Influence Increases 565 | . 366 94 90 15 Destroy 0b10 Robot/C 240 | . 200 . 40 . Destroy 0b10 Robot/NC 15 | . 10 . 5 . Destroy Leader 42 | . 32 . 10 . Successful Hack 8 | . 4 4 . . Disable Machine 15 | . . . 15 . Destroy Structure 5 | . . . 5 . Partial Spotted 75 | . 45 . 15 15 Lose Combat Pursuer 165 | . 75 90 . . Influence Decreases 565 | . 230 150 157 28 Entered New Map 134 | . . 79 47 8 Time Decay 240 | . 150 20 60 10 Lost Part 170 | . 80 30 50 10 Purge Threat 21 | . . 21 . . Squads Dispatched 11 | . 5 2 2 2 Investigation 4 | . 2 . . 2 Extermination . | . . . . . Reinforcement 7 | . 3 2 2 . Assault . | . . . . . Garrison . | . . . . . Intercept . | . . . . . Searches Triggered . | . . . . . Construction Impeded . | . . . . . Haulers Reinforced . | . . . . . Active Scanning Responses . | . . . . . Cargo Convoy Interrupts . | . . . . . Stealth | -11 -10 -9 -8 -8 --------- Run | Yrd Mat Mat Mat Sto Distress Signals 4 | . 3 . 1 . Communications Jammed . | . . . . . Distress Signals . | . . . . . Times Spotted 55 | . 25 12 13 5 Peak Tracking Total 8 | . 5 8 8 6 Tactical Retreats 4 | . 3 1 . . Traps | -11 -10 -9 -8 -8 ------- Run | Yrd Mat Mat Mat Sto Traps Triggered 2 | . 2 . . . Indirectly . | . . . . . Trap Hack Attempts . | . . . . . Triggered . | . . . . . Disarmed . | . . . . . Reprogrammed . | . . . . . Reused . | . . . . . Traps Extracted . | . . . . . Installed . | . . . . . Triggered . | . . . . . Machines | -11 -10 -9 -8 -8 ---------- Run | Yrd Mat Mat Mat Sto Machines Disabled 1 | . . . 1 . Max in Single Turn 1 | . . . 1 . Machines Repaired . | . . . . . Machines Dismantled . | . . . . . Machines Sabotaged . | . . . . . Overloaded Fab Kills . | . . . . . Hacking | -11 -10 -9 -8 -8 --------- Run | Yrd Mat Mat Mat Sto Machines Accessed 9 | . 2 4 . 3 Terminals 9 | . 2 4 . 3 Fabricators . | . . . . . Repair Stations . | . . . . . Recycling Units . | . . . . . Scanalyzers . | . . . . . Garrison Access . | . . . . . Total Hacks 18 | . 2 8 . 8 Successful 8 | . 2 5 . 1 Failed 10 | . . 3 . 7 Catastrophic . | . . . . . Database Lockouts . | . . . . . Manual 18 | . 2 8 . 8 Terminals 18 | . 2 8 . 8 Fabricators . | . . . . . Repair Stations . | . . . . . Recycling Units . | . . . . . Scanalyzers . | . . . . . Garrison Access . | . . . . . Terminal Hacks 2 | . . 1 . 1 Open Door 1 | . . . . 1 Unreport Threat 1 | . . 1 . . Fabricator Hacks . | . . . . . Repair Station Hacks . | . . . . . Recycling Unit Hacks . | . . . . . Scanalyzer . | . . . . . Garrison Access Hacks . | . . . . . Unauthorized Hacks 6 | . 2 4 . . Terminals 6 | . 2 4 . . Skim 6 | . 2 4 . . Fabricators . | . . . . . Repair Stations . | . . . . . Recycling Units . | . . . . . Scanalyzers . | . . . . . Garrison Access . | . . . . . Data Cores Recovered . | . . . . . Used . | . . . . . Hacking Detections 4 | . . 2 . 2 Full Trace Events 2 | . . . . 2 Feedback Events . | . . . . . Feedback Blocked . | . . . . . Robot Schematics Acquired . | . . . . . Robots Built . | . . . . . Authchips . | . . . . . Time . | . . . . . Total Robot Build Rating . | . . . . . Part Schematics Acquired . | . . . . . Parts Built . | . . . . . Authchips . | . . . . . Time . | . . . . . Total Part Build Rating . | . . . . . Parts Repaired . | . . . . . Time . | . . . . . Parts Recycled . | . . . . . Recycled Matter . | . . . . . Retrieved Matter . | . . . . . Retrieved Components . | . . . . . Parts Scanalyzed . | . . . . . Part Schematics Acquired . | . . . . . Parts Damaged . | . . . . . Bothacking | -11 -10 -9 -8 -8 ------------ Run | Yrd Mat Mat Mat Sto Used RIF Installer . | . . . . . Robots Hacked . | . . . . . Non-combat . | . . . . . Combat . | . . . . . Robot Hacks Applied . | . . . . . Relay Couplers Released . | . . . . . Fabnet Peak Effective % . | . . . . . Robots Rewired . | . . . . . Allies Hacked . | . . . . . Hacks Repelled . | . . . . . Allies | -11 -10 -9 -8 -8 -------- Run | Yrd Mat Mat Mat Sto Total Allies . | . . . . . Largest Group . | . . . . . Highest-Rated Group . | . . . . . Highest-Rated Ally . | . . . . . Total Orders . | . . . . . Ally Attacks . | . . . . . Total Damage . | . . . . . Kills . | . . . . . Allies Corrupted . | . . . . . Allies Melted . | . . . . . Intel | -11 -10 -9 -8 -8 ------- Run | Yrd Mat Mat Mat Sto Active Infowar (turns) 285 | . 108 61 116 . Optics 285 | . 108 61 116 . Robot Analysis Total . | . . . . . Derelict Logs Recovered . | . . . . . Drone Launches . | . . . . . Drone Recoveries . | . . . . . Exploration | -11 -10 -9 -8 -8 ------------- Run | Yrd Mat Mat Mat Sto Turns Passed 593 | 40 324 61 127 41 Spaces Moved 834 | 61 450 133 94 96 Core 244 | 61 14 71 86 12 Treads 8 | . . . 8 . Legs . | . . . . . Wheels . | . . . . . Hover . | . . . . . Flight 582 | . 436 62 . 84 Fastest Speed 35 | 50 37 37 50 35 Average Speed 45 | 54 38 44 81 36 Slowest Speed 250 | 100 50 50 250 50 Overloaded Moves . | . . . . . Propulsion Burnouts . | . . . . . Robots Hopped 14 | . 9 2 . 3 Potential Cave-ins . | . . . . . Cave-ins Triggered . | . . . . . Exploration Rate (%) 27 | 3 68 29 15 23 Regions Visited 4 Branch Regions 1 Pre-discovered Areas . | . . . . . Known Exits Taken . | . . . . . Unknown Exits Taken 4 | 1 1 1 1 . Scrap Searched . | . . . . . Spaces Dug . | . . . . . Terrain Destroyed 5 | . . . 5 . Melee . | . . . . . Projectile 2 | . . . 2 . AOE 3 | . . . 3 . Terrain Rammed . | . . . . . Walls Destroyed . | . . . . . Machines Disabled . | . . . . . Actions | -11 -10 -9 -8 -8 --------- Run | Yrd Mat Mat Mat Sto Total 942 | 68 527 133 118 96 Wait 17 | . 17 . . . Move 804 | 60 432 128 93 91 Hop 12 | . 8 2 . 2 Pick Up 11 | 5 4 2 . . Fast Attach 17 | 1 9 . 5 2 Attach 7 | . 6 . 1 . Detach 2 | 1 1 . . . Swap 3 | . 2 . 1 . Drop 5 | 1 3 1 . . Fire 60 | . 45 . 14 1 Melee . | . . . . . Ram 2 | . . . 2 . Kick . | . . . . . Crush 2 | . . . 2 . Escape Stasis . | . . . . . Rewire . | . . . . . Trap . | . . . . . Miscellaneous . | . . . . . Route ------- -11/Scrapyard -10/Materials (discovered 2 exits: *Mat / [*Min]) -9/Materials -8/Materials -8/Storage History --------- Turn | Location | Event 4 | -11/Scrapyard | Discovered new exit (range 16) 41 | -11/Scrapyard | Entered Materials 98 | -10/Materials | Discovered new exit (range 13) 249 | -10/Materials | Discovered new exit (range 11) 254 | -10/Materials | Lost 3 parts (1p1n1w) 357 | -10/Materials | Core integrity fell below 50% 365 | -10/Materials | Entered another Materials area 365 | -9/Materials | Evolved 2 slots: Utility x2 419 | -9/Materials | Discovered new exit (range 9) 426 | -9/Materials | Entered another Materials area 426 | -8/Materials | Evolved 2 slots: Utility x2 432 | -8/Materials | Lost 6 parts (1p4n1w) 542 | -8/Materials | Released all parts (2) 550 | -8/Materials | Discovered new exit (range 5) 553 | -8/Materials | Entered Storage 572 | -8/Storage | Lost 4 parts (1p1n1u1w) 594 | -8/Storage | Self-destructed Last Messages --------------- 00542_ Released Ion Cannon. 00550_ EXIT=FOUND LOCATION=UNKNOWN GOAL=ESCAPE 00558_ Acquired Pulse Rifle. 00560_ Acquired Cesium-ion Thruster. 00567_ Connecting with Terminal... 00567_ Current location identified: Storage 00567_ ALERT: Suspicious activity at Terminal S012. Dispatching Investigation squad. 00577_ Connecting with Door Terminal... >>Open(Door) Sealed Heavy Doors opened. 00583_ Pulse Rifle destroyed. 00588_ Connecting with Terminal... 00588_ ALERT: Suspicious activity at Terminal S002. Dispatching Investigation squad. 00593_ Cesium-ion Thruster destroyed. 00594_ Compression Vault explodes. 00594_ A-02 Transporter destroyed. Map ----- +----------------------------------------------------+ | ????????????????????????????????????????????????? | | ????????????????????????????????????????????????? | | ????????????????????????????????????????????????? | | ????????????????????????????????????????????????? | | ????????????????????????????????????????????????? | | ????????????????????????????????????????????????# | | ????????????????????????????????????????????????# | | ????????????????????????????????????????????????# | | ????????????????????????????????????????????????# | | ????????????????????????????????????????????????# | | ???????????????????????????????????????????????## | | ???????????????????????????????####????????????#T | | ????????????????????????????#### ############## | | ???????????????????????????? #? ^ | | ????????????????????????????# #? ??# ^ | | ????????????????????????????# #?# #??# | | ????????????????????????????# #?# #??# #### | | ????????????????????????????# #?# #??# #######??? | | ????????????????????????????# #?# ####+####?????? | | ????????????????????????????# #?# ## #?????# | | ????????????????????????????# ### ## #?????# | | ?????????????????????######## ## # #?????# | | ??????????????????+ [[[ T + #?????# | | ?????????????????????### ![ %# # #?????# | | ??????????????????????# g*[[ #### #?????# | | ??????????????????????# @ g #??########?????? | | ??????????????????????# Y #???????????????? | | ??????????????????????# #???????????????? | | ??????????????????????# #???????????????? | | ???????????????????????# ##???????????????? | | | | | | | | | | | | | | | | | | | | | | | | | | | | | | | | | | | | | | | | | +----------------------------------------------------+ Best States ------------- Heat Dissipation 31 Energy Generation 14 Energy Capacity 250 Matter Stores 300 Matter Capacity 300 Sight Range 18 Terrain Scan Density 10 Additional Mass Support 6 Evasion (%) 63 Melee Accuracy 5 Recoil Reduction 1 Item Schematics ----------------- None Robot Schematics ------------------ None Fabricated ------------ Nothing Repaired ---------- Nothing Alien Tech Used ----------------- None Achievements -------------- None Challenges ------------ None Game ------ Seed GravjetExperimentalBank Manual? 0 Play Time 00:08:16 Cumulative 31.7 hours Start 2025.10.13 @ 23:06:30 End 2025.10.13 @ 23:13:36 Sessions 1 Manual Loads 0 Difficulty Rogue Special Mode None Game No. 123 Rogue 123 Adventurer 0 Explorer 0 Win Type - Total 0 Types 0/0/0/0/0/0/0/0/0/0 Lore% 11 Gallery% 31 Achievement% 28 Wizard Run 0 Options --------- Layout 1 ASCII 0 Keyboard 1 Movement Vi Keybinds 0 Fullscreen 1 Font 16/SmallcapsGlow Map View 55x38 Zoom Use 0% Tactical HUD 1 Map Filters NONE Filters NONE Steam 1 RUN: 05836d72-0faf-4633-a809-bc48e724d6c0